Cogmind - Beta 11.1 @@@ ROGUE MODE // 2022.05.03 @ 20:16:22 Player: Azken Zutik Result: Destroyed by as-78228 with Assembled Rifle Performance ------------- Evolutions (4) 2000 Regions Visited (16) 3200 Robots Destroyed (147) 735 Value Destroyed (4721) 4721 Prototype IDs (48) 960 Alien Tech Used (0) 0 Bonus (2425) 2425 TOTAL SCORE: 14041 Bonus ------- High Alert Combat Kills 22 Follower Combat Kills 242 Entered Garrisons 200 Aligned with FarCom 300 Met Data Miner 300 Met Imprinter 300 Destroyed Z-Imprinter 1000 Triggered Deep Caves Wall 500 Friendly Fire -439 Cogmind --------- Core Integrity 0/850 Matter 9/300 Energy 100/100 System Corruption 10% Temperature Cool (0) Movement Hovering (50) Location -6/Deep Caves Parts ------- > --- POWER (2) -------- (None) > --- PROPULSION (2) --- Improved Airjet > --- UTILITY (9) ------ Improved Heat Sink Makeshift Salvage Targeting Computer > --- WEAPON (2) ------- Heavy Hammer > --- INVENTORY (5) ---- Zionite Composite Leg I Advanced Energy Well (500) Surveybot 24 Scanner Surveybot 24 Chip Microactuators Peak State ------------ > --- POWER ------------ Makeshift Power Source Zionite Light DM Reactor > --- PROPULSION ------- Zionite Composite Leg I Zionite Composite Leg I > --- UTILITY ---------- Improved Heat Sink Lightpack 2.0 Makeshift Salvage Targeting Computer Experimental Reaction Control System Zionite Weapon Casing Zionite Light Carapace Zionite Light Carapace > --- WEAPON ----------- Bore Cannon Rocket Array > --- INVENTORY -------- Makeshift Power Source Makeshift Power Source Medium Treads Improved Medium Treads Aluminum Leg Improved Carbon-fiber Leg Armored Leg Enhanced Flexi-carbon Leg Compact Wheel Improved Airjet Improved Airjet Improved Airjet Zionite Glidesys II Nuclear Pulse Thruster Nuclear Pulse Thruster Advanced Energy Well Advanced Energy Well Zionite Biocell Advanced Weight Redist. System Machine Analyzer Surveybot 24 Scanner Surveybot 24 Chip Target Analyzer Microactuators Makeshift Transmission Jammer Focal Shield Phasing AFG Zionite Laser-M Zionite Laser-M Heavy Rocket Launcher Heavy Missile Launcher Rocket Array Rocket Array Mining Laser Mace Heavy Hammer Makeshift Hammer Makeshift Hammer Makeshift Axe [Rating: 118] Favorites ----------- Power Improved Deuterium Engine Engine Improved Deuterium Engine Power Core Fission Core Reactor Antimatter Reactor Propulsion Light Treads Treads Light Treads Leg Aluminum Leg Wheel Wheel Hover Unit Improved Airjet Flight Unit Nuclear Pulse Thruster Utility Huge Storage Unit Device Weapon Cycler Storage Huge Storage Unit Processor Salvage Targeting Computer Protection Core Shielding Weapon Minigun Energy Gun AWS/Thermal Ballistic Gun Minigun Ballistic Cannon Bore Cannon Launcher Heavy Rocket Launcher Special Weapon Mining Laser Impact Weapon Heavy Hammer Build | -11 -10 -10 -10 -9 -8 -8 -7 -7 -7 -7 -6 -6 -6 -6 -6 -6 ------- Run | Scr Mat Min Exi Min Mat Gar Fac Low Low Dat Pro Fac Low Low Zio Dee Slots Evolved 8 | . . . . . 4 . 2 . . . . 2 . . . . Power 1 | . . . . . . . . . . . . 1 . . . . Propulsion . | . . . . . . . . . . . . . . . . . Utility 7 | . . . . . 4 . 2 . . . . 1 . . . . Weapon . | . . . . . . . . . . . . . . . . . Parts Attached 175 | 3 12 9 4 . 20 . 33 7 13 1 16 12 3 . 14 28 Power 16 | . 1 1 . . 2 . 2 . 1 . 2 1 1 . 3 2 Engine 8 | . 1 1 . . 2 . 2 . 1 . . . . . 1 . Core 3 | . . . . . . . . . . . 1 . 1 . 1 . Reactor 5 | . . . . . . . . . . . 1 1 . . 1 2 Propulsion 50 | 2 4 2 2 . 8 . 8 1 4 . 5 3 . . 4 7 Treads 11 | 2 2 . . . 2 . 2 . 3 . . . . . . . Leg 8 | . . 2 . . . . . . . . 4 . . . . 2 Wheel 19 | . 2 . 2 . 6 . 6 1 1 . 1 . . . . . Hover 10 | . . . . . . . . . . . . 3 . . 2 5 Flight 2 | . . . . . . . . . . . . . . . 2 . Utility 55 | . 3 . 1 . 6 . 13 5 3 1 6 2 1 . 6 8 Device 29 | . . . . . 4 . 7 4 1 . 5 1 1 . 3 3 Storage 8 | . 2 . 1 . 1 . . . . . 1 1 . . 1 1 Processor 2 | . . . . . . . . . 1 . . . . . 1 . Hackware . | . . . . . . . . . . . . . . . . . Protection 16 | . 1 . . . 1 . 6 1 1 1 . . . . 1 4 Artifact . | . . . . . . . . . . . . . . . . . Weapon 54 | 1 4 6 1 . 4 . 10 1 5 . 3 6 1 . 1 11 Energy Gun 8 | . . . 1 . . . . 1 . . . . . . . 6 Energy Cannon . | . . . . . . . . . . . . . . . . . Ballistic Gun 25 | 1 2 4 . . 3 . 7 . 4 . 2 2 . . . . Ballistic Cannon 2 | . . . . . . . . . . . . . . . . 2 Launcher 10 | . . . . . 1 . 2 . 1 . 1 2 1 . . 2 Special Weapon 4 | . 2 2 . . . . . . . . . . . . . . Impact Weapon 5 | . . . . . . . 1 . . . . 2 . . 1 1 Slashing Weapon . | . . . . . . . . . . . . . . . . . Piercing Weapon . | . . . . . . . . . . . . . . . . . Special Melee Weapon . | . . . . . . . . . . . . . . . . . Unidentified Prototypes 15 | . . . . . . . 1 . . . 2 1 1 . . 10 Corrupted Parts 9 | . . . . . . . . . . . 6 2 . . . 1 System Corruption 53 | . . . . . . . . . . . 23 20 . . . 10 Parts Lost 59 | . 1 4 . . 1 . 17 1 10 . 4 8 . . . 13 Power 5 | . . 1 . . . . 1 . 1 . . 1 . . . 1 Propulsion 16 | . . 2 . . . . 5 1 3 . 1 . . . . 4 Utility 25 | . . . . . . . 9 . 5 . 2 4 . . . 5 Weapon 13 | . 1 1 . . 1 . 2 . 1 . 1 3 . . . 3 Highest Loss Streak 9 | . 1 4 . . 1 . 9 1 7 . 1 5 . . . 7 To Critical Strikes . | . . . . . . . . . . . . . . . . . Average Slot Usage (%) 81 | . 94 98 94 85 96 100 94 94 83 61 85 71 46 40 43 59 Engine 7 | . 14 13 14 14 9 9 6 7 6 7 5 . . . . 5 Treads 6 | . 21 . . . . . . . 12 15 7 . . . . . Leg 3 | . . 26 15 . . . . . . . 4 6 . . . 4 Wheel 5 | . 6 . 12 28 17 18 13 14 1 . 2 . . . . . Hover 2 | . . . . . . . . . . . . 6 13 13 11 6 Device 15 | . . . . . 35 36 34 33 23 7 14 25 13 13 10 8 Storage 9 | . 14 14 14 14 9 9 7 7 7 7 9 9 6 6 5 7 Processor 1 | . . . . . . . . . 6 7 7 2 . . . 6 Protection 10 | . 9 14 14 14 9 9 13 19 8 15 14 2 . . 2 8 Ballistic Gun 12 | . 27 26 17 . 12 18 14 6 7 . 12 4 . . . . Launcher 1 | . . . . . . . . . 5 . 1 2 6 . . 2 Naked Turns . | . . . . . . . . . . . . . . . . . Heaviest Build 122 | 11 87 28 94 94 101 101 114 113 113 100 112 122 26 23 35 45 Greatest Support 65 | 40 40 20 20 20 26 20 26 26 40 40 65 52 27 27 27 48 Greatest Overweight (x) 11 | . 2 7 4 4 5 5 11 6 7 2 6 2 . . 1 2 Average Overweight (x) 1 | . . 1 2 4 3 5 5 4 2 2 2 . . . . . Largest Inventory Capacity 40 | 8 25 15 25 25 25 25 25 25 25 25 25 40 40 40 40 40 Average Capacity 25 | 8 16 15 19 25 25 25 25 25 25 25 25 32 40 40 34 37 Most Carried 40 | 6 15 15 19 22 25 25 25 25 25 18 24 27 30 35 40 40 Average Carried 21 | 4 9 14 16 20 23 25 24 22 16 17 18 22 26 31 31 36 Final Capacity 40 | 8 15 15 25 25 25 25 25 25 25 25 25 40 40 40 40 5 Final Carried 38 | 3 15 15 19 22 25 25 25 25 16 17 24 26 30 35 38 5 Class Distribution -------------------- 55% | Scavenger-Mutant 24% | Mutant 20% | Hauler-Mutant Dominant Class ---------------- Mutant | -10/Materials Scavenger-Mutant | -10/Mines Scavenger-Mutant | -10/Exiles Mutant | -9/Mines Mutant | -8/Materials Scavenger-Mutant | -8/Garrison Scavenger-Mutant | -7/Factory Scavenger-Mutant | -7/Lower Caves Scavenger-Mutant | -7/Lower Caves Scavenger-Mutant | -7/Data Miner Scavenger-Mutant | -6/Proximity Caves Hauler-Mutant | -6/Factory Hauler-Mutant | -6/Lower Caves Hauler-Mutant | -6/Lower Caves Hauler-Mutant | -6/Zion Hauler-Mutant | -6/Deep Caves Resources | -11 -10 -10 -10 -9 -8 -8 -7 -7 -7 -7 -6 -6 -6 -6 -6 -6 ----------- Run | Scr Mat Min Exi Min Mat Gar Fac Low Low Dat Pro Fac Low Low Zio Dee Matter Collected 4695 | 171 789 167 . 25 502 50 978 369 250 . 458 200 35 22 185 494 Remotely 619 | . . . . . . . . 369 250 . . . . . . . Salvage Created 6076 | . 941 322 . 69 769 63 1598 444 563 . 398 634 . . . 275 Parts 273 | . 57 15 . 4 38 6 72 11 18 . 14 30 . . . 8 Haulers Intercepted 6 | . 2 . . . 2 . . . . . . 2 . . . . Recyclers Shooed 9 | . 1 1 . . . . 2 . . . . 5 . . . . Parts Field Recycled . | . . . . . . . . . . . . . . . . . Retrieved Matter . | . . . . . . . . . . . . . . . . . Parts Self-Destructed 48 | . . . . . . . . 10 19 . 16 . . . 3 . Prevented 6 | . . . . . . . . . . . 6 . . . . . Kills | -11 -10 -10 -10 -9 -8 -8 -7 -7 -7 -7 -6 -6 -6 -6 -6 -6 ------- Run | Scr Mat Min Exi Min Mat Gar Fac Low Low Dat Pro Fac Low Low Zio Dee Combat Hostiles Destroyed 110 | . 19 8 . 1 10 4 23 9 15 . 7 5 . . . 9 Guns 80 | . 18 8 . . 8 4 20 8 10 . 4 . . . . . Cannons 1 | . 1 . . . . . . . . . . . . . . . AOE 28 | . . . . 1 2 . 3 . 5 . 3 5 . . . 9 Classes Destroyed 17 | . 7 . . . 2 . 5 . 1 . . . . . . 2 Worker 15 | . 3 . . . 3 . 5 . . . . 4 . . . . Builder 3 | . 1 . . . . . 1 . . . . 1 . . . . Tunneler 2 | . . . . . 2 . . . . . . . . . . . Hauler 6 | . 2 . . . 2 . . . . . . 2 . . . . Recycler 8 | . 1 . . . 2 . 4 . . . . 1 . . . . Mechanic 1 | . . . . . . . 1 . . . . . . . . . Watcher 3 | . 2 . . . . . . . . . . 1 . . . . Swarmer 18 | . 6 . . . 1 4 1 2 4 . . . . . . . Grunt 59 | . 13 8 . 2 8 . 10 2 5 . 6 5 . . . . Brawler 6 | . . . . . . . 1 2 3 . . . . . . . Duelist 4 | . . . . . . . 2 . 1 . 1 . . . . . Sentry 7 | . . . . . 2 . 3 1 1 . . . . . . . Hunter 4 | . . . . . . . 3 1 . . . . . . . . Programmer 4 | . . . . . . . 3 1 . . . . . . . . Z-Light 6 | . . . . . . . . . . . . . . . . 6 Master Thief 1 | . . . . . . . . . 1 . . . . . . . Assembled 3 | . . . . . . . . . . . . . . . . 3 Best Kill Streak 13 | . 4 4 . 1 8 4 6 4 11 . 3 13 . . . 6 Combat Bots Only 11 | . 3 4 . 1 7 4 4 4 11 . 3 5 . . . 6 Max Kills in Single Turn 3 | . 2 1 . 2 2 1 3 1 3 . 2 3 . . . 2 Gunslinging 1 | . . . . . . . 1 . . . . . . . . . Exploded 3 | . . . . 1 1 . 2 . 3 . 2 2 . . . 2 Melee . | . . . . . . . . . . . . . . . . . Uniques/NPCs Destroyed 1 | . . . . . . . . . . . . . . . . 1 Z-Imprinter (-6/Deep Caves) Combat | -11 -10 -10 -10 -9 -8 -8 -7 -7 -7 -7 -6 -6 -6 -6 -6 -6 -------- Run | Scr Mat Min Exi Min Mat Gar Fac Low Low Dat Pro Fac Low Low Zio Dee Damage Taken 7574 | . 795 508 . 35 341 42 1724 324 925 . 574 700 . . . 1606 Core 1492 | . 155 78 . 10 37 7 185 32 86 . 44 146 . . . 712 Absorbed by Shields 574 | . . . . . 97 17 352 . 108 . . . . . . . Redirected to Shielding 342 | . 11 . . . 13 . 45 8 18 . 56 13 . . . 178 Core Remaining (%) 61 | 100 . . . 2 . 92 . . . . 50 . . . . . Volleys Fired 426 | . 110 51 . . 34 8 110 9 22 . 20 26 . . . 36 Largest 2 | . 2 2 . . 2 2 2 2 2 . 2 2 . . . 2 Hottest 114 | . 100 100 . . 50 50 50 50 64 . 53 50 . . . 114 Shots Fired 856 | . 213 88 . 4 67 13 214 66 70 . 38 35 . 1 . 47 Gun 767 | . 207 74 . 4 63 13 208 66 60 . 35 20 . . . 17 Cannon 22 | . . . . . . . . . . . . . . . . 22 Launcher 47 | . . . . . 4 . 6 . 10 . 3 15 . 1 . 8 Special 20 | . 6 14 . . . . . . . . . . . . . . Kinetic 684 | . 207 74 . . 60 13 208 19 26 . 35 20 . . . 22 Thermal 125 | . 6 14 . 4 3 . . 47 34 . . . . . . 17 Explosive 39 | . . . . . 4 . 6 . 10 . . 10 . 1 . 8 Electromagnetic 8 | . . . . . . . . . . . 3 5 . . . . Robot Hit Streak 22 | . 14 10 . 2 11 5 12 17 22 . 13 5 . 2 . 4 Robot Miss Streak 8 | . 5 2 . 2 5 2 3 2 4 . 8 4 . 3 . 7 Penetration Max . | . . . . . . . . . . . . . . . . . Secondary Targets 8 | . 2 1 . . . 1 3 . . . 1 . . . . . Max Gunslinging Chain 1 | . 1 1 . . . 1 1 . . . 1 . . . . . Autonomous 89 | . . . . 4 3 . . 47 35 . . . . . . . Shots Hit Robots 570 | . 137 60 . 2 46 7 143 55 51 . 32 16 . 1 . 20 Core Hits 311 | . 53 21 . 2 30 4 65 14 29 . 25 26 . 2 . 40 Critical Kills . | . . . . . . . . . . . . . . . . . Critical Parts Destroyed 7 | . 4 . . . . . . . . . . . . . . 3 Critical Strikes 12 | . 4 . . . . . . . . . . . . . . 8 Destroy 12 | . 4 . . . . . . . . . . . . . . 8 Melee Attacks 42 | . . . . . . . 4 . . . . 3 . . 32 3 Impact 42 | . . . . . . . 4 . . . . 3 . . 32 3 Slashing . | . . . . . . . . . . . . . . . . . Piercing . | . . . . . . . . . . . . . . . . . Sneak Attacks . | . . . . . . . . . . . . . . . . . Combat Hostiles . | . . . . . . . . . . . . . . . . . Follow-up Attacks . | . . . . . . . . . . . . . . . . . Damage Inflicted 14317 | . 1419 465 . 252 1367 115 2797 1619 1940 . 730 1647 . 124 . 1842 Guns 8994 | . 1370 461 . 58 841 115 2502 1619 1159 . 569 186 . . . 114 Cannons 169 | . . . . . . . . . . . . . . . . 169 Explosions 4959 | . . . . 194 526 . 284 . 781 . 161 1460 . 124 . 1429 Melee 130 | . . . . . . . . . . . . . . . . 130 Ramming 41 | . 25 4 . . . . 11 . . . . 1 . . . . Kinetic 6646 | . 1370 461 . . 757 115 2502 235 282 . 569 186 . . . 169 Thermal 2735 | . 24 . . 252 84 . . 1384 877 . . . . . . 114 Explosive 4160 | . . . . . 526 . 284 . 781 . . 1016 . 124 . 1429 Electromagnetic 605 | . . . . . . . . . . . 161 444 . . . . Impact 130 | . . . . . . . . . . . . . . . . 130 Slashing . | . . . . . . . . . . . . . . . . . Piercing . | . . . . . . . . . . . . . . . . . Highest Corruption 28 | . . . . . . . 5 5 5 5 28 20 20 20 20 10 Average Corruption 7 | . . . . . . . 3 5 5 5 7 19 20 20 20 10 Corruption Purged . | . . . . . . . . . . . . . . . . . Corruption Blocked . | . . . . . . . . . . . . . . . . . Effects 127 | . . . . . . . 13 20 29 6 27 12 7 7 2 4 Message Errors 33 | . . . . . . . 6 7 6 2 3 4 4 . . 1 Matter Fused 26 | . . . . . . . 2 5 7 1 5 1 2 3 . . Heat Flow Errors 13 | . . . . . . . 3 1 2 . 4 . . 2 . 1 Energy Discharges 18 | . . . . . . . 1 3 5 1 7 . . . 1 . Parts Rejected 2 | . . . . . . . . 1 . . . 1 . . . . Data Loss (minor) 19 | . . . . . . . 1 . 8 2 3 . 1 1 1 2 Data Loss (major) 6 | . . . . . . . . 1 . . 3 2 . . . . Misfires 4 | . . . . . . . . 1 1 . 1 . . 1 . . Alerts 2 | . . . . . . . . 1 . . 1 . . . . . Misdirections 4 | . . . . . . . . . . . . 4 . . . . Overload Shots . | . . . . . . . . . . . . . . . . . Overflow Damage 210 | . . . . . 10 . . . 20 . . 14 . 31 . 135 Projectiles . | . . . . . . . . . . . . . . . . . Explosions 88 | . . . . . 10 . . . 20 . . 14 . 31 . 13 Melee 122 | . . . . . . . . . . . . . . . . 122 Knockbacks 2 | . 1 . . . . . 1 . . . . . . . . . Impact 2 | . 1 . . . . . 1 . . . . . . . . . Kinetic . | . . . . . . . . . . . . . . . . . Secondary . | . . . . . . . . . . . . . . . . . Self-Inflicted Damage 167 | . . . . 12 . . 25 . . . . 80 . . . 50 Shots 7 | . . . . 1 . . 1 . . . . 3 . . . 2 Rammed 6 | . 4 . . . . . 1 . . . . 1 . . . . Targets Rammed 7 | . 4 1 . . . . 1 . . . . 1 . . . . Kicked 1 | . . 1 . . . . . . . . . . . . . . Crushed . | . . . . . . . . . . . . . . . . . Highest Temperature 592 | . 80 162 . . . . 242 71 205 . 252 21 . 196 . 592 Average Temperature 99 | . 17 52 . . . . 107 51 40 . 66 21 . 103 . 328 Received Heat Transfer 2074 | . 360 294 . 15 195 . 247 81 216 . 183 315 . . . 168 Effects 16 | . . . . . . . . . . . . . . . . 16 Shutdowns 3 | . . . . . . . . . . . . . . . . 3 Energy Bleed 2 | . . . . . . . . . . . . . . . . 2 Interference 3 | . . . . . . . . . . . . . . . . 3 Matter Decay 2 | . . . . . . . . . . . . . . . . 2 Short Circuit 3 | . . . . . . . . . . . . . . . . 3 Damage (minor) 1 | . . . . . . . . . . . . . . . . 1 Damage (core) 2 | . . . . . . . . . . . . . . . . 2 Siege Activations . | . . . . . . . . . . . . . . . . . Robots Corrupted . | . . . . . . . . . . . . . . . . . Combat Hostiles . | . . . . . . . . . . . . . . . . . Parts Fried 2 | . . . . . . . . . . . . 2 . . . . Impact Corruptions 2 | . . . . . . . . . . . . . . . . 2 Robots Melted 1 | . . . . . . . . 1 . . . . . . . . Combat Hostiles 1 | . . . . . . . . 1 . . . . . . . . Parts Melted 8 | . . . . 1 1 . . 3 3 . . . . . . . Heat Transferred 3154 | . 50 . . 274 111 . . 1517 999 . . . . . . 203 Parts Sabotaged . | . . . . . . . . . . . . . . . . . Parts Stolen 5 | . . . . . . . . 2 3 . . . . . . . Parts Stripped . | . . . . . . . . . . . . . . . . . Power Chain Reactions 1 | . . . . . . . . . . . . 1 . . . . Missiles Intercepted . | . . . . . . . . . . . . . . . . . Alert | -11 -10 -10 -10 -9 -8 -8 -7 -7 -7 -7 -6 -6 -6 -6 -6 -6 ------- Run | Scr Mat Min Exi Min Mat Gar Fac Low Low Dat Pro Fac Low Low Zio Dee Peak Influence 423 | . 218 104 . 118 423 381 370 . . . . 375 . . . . Initial 201 | . . 31 . . 45 201 199 . . . . . . . . . Average 137 | . 78 34 . 110 181 287 239 . . . . 175 . . . . Maximum Alert Level 2 | . 1 . . . 2 1 1 . . . . 1 . . . . Low Security (%) 72 | 100 96 100 . 100 68 . 37 . . . . 56 . . . . Level 1 26 | . 3 . . . 25 100 62 . . . . 43 . . . . Level 2 . | . . . . . 6 . . . . . . . . . . . Level 3 . | . . . . . . . . . . . . . . . . . Level 4 . | . . . . . . . . . . . . . . . . . Level 5 . | . . . . . . . . . . . . . . . . . High Security . | . . . . . . . . . . . . . . . . . Max Security . | . . . . . . . . . . . . . . . . . Squads Dispatched 26 | . 5 . . . 4 . 10 . 1 . . 6 . . . . Investigation 8 | . 4 . . . 1 . 3 . . . . . . . . . Extermination 2 | . . . . . . . 2 . . . . . . . . . Reinforcement 10 | . 1 . . . 1 . 2 . . . . 6 . . . . Assault 1 | . . . . . . . . . 1 . . . . . . . Garrison 5 | . . . . . 2 . 3 . . . . . . . . . Intercept . | . . . . . . . . . . . . . . . . . Searches Triggered . | . . . . . . . . . . . . . . . . . Construction Impeded 2 | . . . . . . . 1 . . . . 1 . . . . Haulers Reinforced 3 | . . . . . . . 1 . . . . 2 . . . . Active Scanning Responses . | . . . . . . . . . . . . . . . . . Cargo Convoy Interrupts . | . . . . . . . . . . . . . . . . . Stealth | -11 -10 -10 -10 -9 -8 -8 -7 -7 -7 -7 -6 -6 -6 -6 -6 -6 --------- Run | Scr Mat Min Exi Min Mat Gar Fac Low Low Dat Pro Fac Low Low Zio Dee Distress Signals 5 | . 1 . . . 1 . 1 . . . . 2 . . . . Communications Jammed . | . . . . . . . . . . . . . . . . . Distress Signals . | . . . . . . . . . . . . . . . . . Times Spotted 188 | . 27 8 . 2 20 4 28 13 22 . 9 28 . . . 27 Peak Tracking Total 9 | . 4 2 . 2 7 4 6 5 8 . 3 9 . . . 4 Tactical Retreats 8 | . 2 . . . . . 2 1 . . . 3 . . . . Traps | -11 -10 -10 -10 -9 -8 -8 -7 -7 -7 -7 -6 -6 -6 -6 -6 -6 ------- Run | Scr Mat Min Exi Min Mat Gar Fac Low Low Dat Pro Fac Low Low Zio Dee Traps Triggered 5 | . 2 . . . . . 2 . . . . 1 . . . . Indirectly 1 | . . . . . . . . . . . . 1 . . . . Trap Hack Attempts . | . . . . . . . . . . . . . . . . . Triggered . | . . . . . . . . . . . . . . . . . Disarmed . | . . . . . . . . . . . . . . . . . Reprogrammed . | . . . . . . . . . . . . . . . . . Reused . | . . . . . . . . . . . . . . . . . Traps Extracted . | . . . . . . . . . . . . . . . . . Installed . | . . . . . . . . . . . . . . . . . Triggered . | . . . . . . . . . . . . . . . . . Machines | -11 -10 -10 -10 -9 -8 -8 -7 -7 -7 -7 -6 -6 -6 -6 -6 -6 ---------- Run | Scr Mat Min Exi Min Mat Gar Fac Low Low Dat Pro Fac Low Low Zio Dee Machines Disabled 6 | . . . . 1 3 . . . . . . 2 . . . . Max in Single Turn 2 | . . . . 1 2 . . . . . . 1 . . . . Machines Sabotaged . | . . . . . . . . . . . . . . . . . Garrisons Compromised . | . . . . . . . . . . . . . . . . . Overloaded Fab Kills . | . . . . . . . . . . . . . . . . . Hacking | -11 -10 -10 -10 -9 -8 -8 -7 -7 -7 -7 -6 -6 -6 -6 -6 -6 --------- Run | Scr Mat Min Exi Min Mat Gar Fac Low Low Dat Pro Fac Low Low Zio Dee Machines Accessed 24 | . 7 . 2 . 4 . 5 1 . 4 . 1 . . . . Terminals 12 | . 5 . . . 3 . 3 . . . . 1 . . . . Fabricators 1 | . . . . . . . 1 . . . . . . . . . Repair Stations . | . . . . . . . . . . . . . . . . . Recycling Units 3 | . 2 . . . . . 1 . . . . . . . . . Scanalyzers . | . . . . . . . . . . . . . . . . . Garrison Access 1 | . . . . . 1 . . . . . . . . . . . Total Hacks 57 | . 8 . 2 . 8 . 8 1 . 29 . 1 . . . . Successful 49 | . 6 . 2 . 6 . 4 1 . 29 . 1 . . . . Failed 8 | . 2 . . . 2 . 4 . . . . . . . . . Catastrophic 2 | . 1 . . . . . 1 . . . . . . . . . Database Lockouts . | . . . . . . . . . . . . . . . . . Manual 17 | . 3 . 1 . 6 . 5 . . . . 1 . . 1 . Terminals 19 | . 6 . . . 7 . 5 . . . . 1 . . . . Fabricators 1 | . . . . . . . 1 . . . . . . . . . Repair Stations . | . . . . . . . . . . . . . . . . . Recycling Units 4 | . 2 . . . . . 2 . . . . . . . . . Scanalyzers . | . . . . . . . . . . . . . . . . . Garrison Access 1 | . . . . . 1 . . . . . . . . . . . Terminal Hacks 40 | . 4 . 2 . 2 . 1 1 . 29 . 1 . . . . Record 12 | . . . 1 . . . . . . 11 . . . . . . Part Schematic 11 | . . . . . . . . . . 11 . . . . . . Robot Schematic 4 | . . . . . . . . . . 4 . . . . . . Prototype ID Bank 3 | . . . . . . . . . . 3 . . . . . . Open Door 1 | . . . . . . . . 1 . . . . . . . . Branch Access Points 4 | . 1 . . . 1 . 1 . . . . 1 . . . . Terminal Index 1 | . . . . . 1 . . . . . . . . . . . Unreport Threat 1 | . 1 . . . . . . . . . . . . . . . Hauler Manifests 1 | . 1 . . . . . . . . . . . . . . . Zone Layout 1 | . 1 . . . . . . . . . . . . . . . EX-Prototype ID Bank 1 | . . . 1 . . . . . . . . . . . . . Fabricator Hacks 1 | . . . . . . . 1 . . . . . . . . . Build 1 | . . . . . . . 1 . . . . . . . . . Repair Station Hacks . | . . . . . . . . . . . . . . . . . Recycling Unit Hacks . | . . . . . . . . . . . . . . . . . Scanalyzer . | . . . . . . . . . . . . . . . . . Garrison Access Hacks 1 | . . . . . 1 . . . . . . . . . . . Unlock Access 1 | . . . . . 1 . . . . . . . . . . . Unauthorized Hacks 7 | . 2 . . . 3 . 2 . . . . . . . . . Terminals 4 | . . . . . 3 . 1 . . . . . . . . . Botnet 4 | . . . . . 3 . 1 . . . . . . . . . Fabricators . | . . . . . . . . . . . . . . . . . Repair Stations . | . . . . . . . . . . . . . . . . . Recycling Units 3 | . 2 . . . . . 1 . . . . . . . . . Tunnel 3 | . 2 . . . . . 1 . . . . . . . . . Scanalyzers . | . . . . . . . . . . . . . . . . . Garrison Access . | . . . . . . . . . . . . . . . . . Data Cores Recovered . | . . . . . . . . . . . . . . . . . Used . | . . . . . . . . . . . . . . . . . Hacking Detections 11 | . 3 . . . 4 . 4 . . . . . . . . . Full Trace Events 1 | . . . . . . . 1 . . . . . . . . . Feedback Events . | . . . . . . . . . . . . . . . . . Feedback Blocked . | . . . . . . . . . . . . . . . . . Robot Schematics Acquired 4 | . . . . . . . . . . 4 . . . . . . Robots Built . | . . . . . . . . . . . . . . . . . Authchips . | . . . . . . . . . . . . . . . . . Time . | . . . . . . . . . . . . . . . . . Total Robot Build Rating . | . . . . . . . . . . . . . . . . . Part Schematics Acquired 11 | . . . . . . . . . . 11 . . . . . . Parts Built 1 | . . . . . . . 1 . . . . . . . . . Authchips . | . . . . . . . . . . . . . . . . . Time 47 | . . . . . . . 47 . . . . . . . . . Total Part Build Rating 5 | . . . . . . . 5 . . . . . . . . . Parts Repaired . | . . . . . . . . . . . . . . . . . Time . | . . . . . . . . . . . . . . . . . Parts Recycled . | . . . . . . . . . . . . . . . . . Recycled Matter . | . . . . . . . . . . . . . . . . . Retrieved Matter . | . . . . . . . . . . . . . . . . . Retrieved Components . | . . . . . . . . . . . . . . . . . Parts Scanalyzed . | . . . . . . . . . . . . . . . . . Part Schematics Acquired . | . . . . . . . . . . . . . . . . . Parts Damaged . | . . . . . . . . . . . . . . . . . Bothacking | -11 -10 -10 -10 -9 -8 -8 -7 -7 -7 -7 -6 -6 -6 -6 -6 -6 ------------ Run | Scr Mat Min Exi Min Mat Gar Fac Low Low Dat Pro Fac Low Low Zio Dee Used RIF Installer . | . . . . . . . . . . . . . . . . . Robots Hacked . | . . . . . . . . . . . . . . . . . Non-combat . | . . . . . . . . . . . . . . . . . Combat . | . . . . . . . . . . . . . . . . . Robot Hacks Applied . | . . . . . . . . . . . . . . . . . Relay Couplers Released 4 | . . . . . . . 4 . . . . . . . . . Programmers 4 | . . . . . . . 4 . . . . . . . . . Fabnet Peak Effective % . | . . . . . . . . . . . . . . . . . Robots Rewired 2 | . . . . . . . . . 2 . . . . . . . Allies Hacked . | . . . . . . . . . . . . . . . . . Hacks Repelled . | . . . . . . . . . . . . . . . . . Allies | -11 -10 -10 -10 -9 -8 -8 -7 -7 -7 -7 -6 -6 -6 -6 -6 -6 -------- Run | Scr Mat Min Exi Min Mat Gar Fac Low Low Dat Pro Fac Low Low Zio Dee Total Allies 12 | . . 3 . . . . . . 2 . 1 . . . 6 . Largest Group 6 | . . 3 3 3 2 . . . 2 2 2 . . . 6 6 Highest-Rated Group 308 | . . 40 40 40 24 . . . 32 32 96 . . . 308 308 Highest-Rated Ally 96 | . . 16 16 16 16 . . . 16 16 96 . . . 96 96 Total Orders 1 | . . . . . 1 . . . . . . . . . . . STAY 1 | . . . . . 1 . . . . . . . . . . . Ally Attacks 165 | . . . . 15 19 . . . 34 . 27 . . . . 70 Total Damage 2622 | . . . . 169 178 . . . 410 . 529 . . . . 1336 Kills 16 | . . . . 1 2 . . . 1 . 3 . . . . 9 Allies Corrupted . | . . . . . . . . . . . . . . . . . Allies Melted 1 | . . . . . . . . . . . 1 . . . . . Intel | -11 -10 -10 -10 -9 -8 -8 -7 -7 -7 -7 -6 -6 -6 -6 -6 -6 ------- Run | Scr Mat Min Exi Min Mat Gar Fac Low Low Dat Pro Fac Low Low Zio Dee Robot Analysis Total . | . . . . . . . . . . . . . . . . . Derelict Logs Recovered 6 | . . 1 . . . . . . 1 . 2 . 1 . 1 . Drone Launches . | . . . . . . . . . . . . . . . . . Drone Recoveries . | . . . . . . . . . . . . . . . . . Exploration | -11 -10 -10 -10 -9 -8 -8 -7 -7 -7 -7 -6 -6 -6 -6 -6 -6 ------------- Run | Scr Mat Min Exi Min Mat Gar Fac Low Low Dat Pro Fac Low Low Zio Dee Turns Passed 11559 | 7 1926 918 457 96 472 224 1388 831 1294 297 862 367 158 154 1308 800 Spaces Moved 7253 | 2 763 364 273 62 220 117 611 507 425 93 324 389 285 324 1775 719 Core 1 | . . 1 . . . . . . . . . . . . . . Treads 1027 | 2 528 . . . . . . . 326 93 78 . . . . . Legs 816 | . . 363 134 . . . . . . . 71 48 . . . 200 Wheels 2165 | . 235 . 139 62 220 117 611 507 99 . 175 . . . . . Hover 2979 | . . . . . . . . . . . . 341 285 324 1510 519 Flight 265 | . . . . . . . . . . . . . . . 265 . Fastest Speed 37 | 160 95 190 140 140 135 155 135 135 145 320 160 46 46 46 37 46 Average Speed 125 | 160 177 190 164 140 139 155 160 150 280 320 207 72 46 46 55 77 Slowest Speed 560 | 160 320 400 190 140 155 155 245 190 545 320 560 260 46 46 106 210 Overloaded Moves . | . . . . . . . . . . . . . . . . . Propulsion Burnouts . | . . . . . . . . . . . . . . . . . Robots Hopped . | . . . . . . . . . . . . . . . . . Cave-ins Triggered . | . . . . . . . . . . . . . . . . . Exploration Rate (%) 47 | 2 89 43 61 12 25 37 25 61 68 70 49 13 54 55 85 60 Regions Visited 16 Branch Regions 11 Pre-discovered Areas 8 | . 2 . 1 . . . 1 . 1 1 . . . . 2 . Known Exits Taken 5 | . 1 . . . 1 . 1 . . . 1 1 . . . . Unknown Exits Taken 10 | 1 . 1 1 1 . . . 1 1 1 . . 1 1 1 . Scrap Searched 14 | . . 2 . 1 . . . 1 . . 3 . 2 1 4 . Spaces Dug 14 | . 2 3 . . . . 1 . . . . 3 . . 3 2 Terrain Destroyed 289 | . 5 12 . 17 30 . 57 6 17 . . 50 . 19 3 73 Melee 9 | . . . . . . . 1 . . . . 3 . . 3 2 Projectile 30 | . 5 12 . 1 . . . 6 6 . . . . . . . AOE 250 | . . . . 16 30 . 56 . 11 . . 47 . 19 . 71 Terrain Rammed . | . . . . . . . . . . . . . . . . . Walls Destroyed . | . . . . . . . . . . . . . . . . . Machines Disabled . | . . . . . . . . . . . . . . . . . Actions | -11 -10 -10 -10 -9 -8 -8 -7 -7 -7 -7 -6 -6 -6 -6 -6 -6 --------- Run | Scr Mat Min Exi Min Mat Gar Fac Low Low Dat Pro Fac Low Low Zio Dee Total 9038 | 7 1135 482 282 71 334 149 878 567 507 95 486 446 311 328 2063 897 Wait 869 | . 229 55 . 7 30 25 97 28 24 . 114 . 15 . 154 91 Move 7239 | 1 762 363 272 61 220 116 611 506 424 92 323 388 284 323 1774 719 Hop . | . . . . . . . . . . . . . . . . . Pick Up 144 | . 14 2 2 3 16 . 12 11 6 . 10 8 7 4 46 3 Fast Attach 63 | . 2 3 1 . 1 . 13 1 1 . 7 3 . . 11 20 Attach 60 | 2 3 1 2 . 7 . 8 5 11 1 4 7 2 . 4 3 Detach 21 | . . . 2 . 1 . 1 . . 2 1 5 2 1 . 6 Swap 53 | 1 7 5 1 . 12 . 12 1 1 . 5 2 1 . . 5 Drop 102 | 3 4 1 2 . 13 . 10 6 6 . 2 3 . . 42 10 Fire 426 | . 110 51 . . 34 8 110 9 22 . 20 26 . . . 36 Melee 42 | . . . . . . . 4 . . . . 3 . . 32 3 Ram 1 | . . . . . . . . . . . . 1 . . . . Kick 1 | . . 1 . . . . . . . . . . . . . . Crush 4 | . 4 . . . . . . . . . . . . . . . Escape Stasis . | . . . . . . . . . . . . . . . . . Rewire 13 | . . . . . . . . . 12 . . . . . . 1 Trap . | . . . . . . . . . . . . . . . . . Miscellaneous . | . . . . . . . . . . . . . . . . . Route ------- -11/Scrapyard -10/Materials (discovered 4 exits: *Mat x3 / *Min) -10/Mines (discovered 2 exits: Mat / *Exi) -10/Exiles -9/Mines -8/Materials -8/Garrison -7/Factory (discovered 2 exits: *Low x2) -7/Lower Caves -7/Lower Caves (discovered 2 exits: *Fac / *Dat) -7/Data Miner -6/Proximity Caves -6/Factory (discovered 4 exits: *Low x2 / Ext x2) -6/Lower Caves -6/Lower Caves -6/Zion (discovered 2 exits: [*Dee] / [*Pro]) -6/Deep Caves History --------- Turn | Location | Event 7 | -11/Scrapyard | Discovered new exit (range 1) 8 | -11/Scrapyard | Entered Materials 314 | -10/Materials | Build established: Mutant 447 | -10/Materials | Discovered new exit (range 3) 1147 | -10/Materials | Discovered new exit (range 15) 1268 | -10/Materials | Discovered new exit (range 13) 1282 | -10/Materials | Core integrity fell below 50% 1412 | -10/Materials | Identified exit to Mines 1934 | -10/Materials | Entered Mines 1969 | -10/Mines | Core integrity fell below 20% 2001 | -10/Mines | Lost 4 parts (1p2n1w) 2266 | -10/Mines | Build established: Scavenger-Mutant 2347 | -10/Mines | Deemed a non-threat by the Exiles lab entrance 2421 | -10/Mines | Identified exit to Materials 2543 | -10/Mines | Excavation squad dispatched 2543 | -10/Mines | A large section of the Mines collapsed 2791 | -10/Mines | Assisted by bots powering up and referring to "LRC-V3" 2793 | -10/Mines | Excavation squad dispatched 2840 | -10/Mines | Discovered new exit (range 5) 2852 | -10/Mines | Entered Exiles 2852 | -10/Exiles | Accompanied by 3 allies 2898 | -10/Exiles | Met 8R-AWN 2938 | -10/Exiles | Met EX-HEX 3001 | -10/Exiles | Met EX-BIN 3037 | -10/Exiles | Aligned with FarCom system 3039 | -10/Exiles | Given EX-Vault access code 3096 | -10/Exiles | Opened EX-Vault 3121 | -10/Exiles | Found Lightpack 2.0 3130 | -10/Exiles | Found AWS/Thermal 3137 | -10/Exiles | Found Chronowheel 3171 | -10/Exiles | Warned to stay clear of 0b10 Research branches 3218 | -10/Exiles | Met EX-DEC 3231 | -10/Exiles | Learned location of Zion (-6) 3290 | -10/Exiles | Discovered new exit (range 11) 3309 | -10/Exiles | Stole three prototypes: AWS/Thermal, Lightpack 2.0, Chronowheel 3309 | -10/Exiles | Entered Mines 3309 | -9/Mines | Accompanied by 3 allies 3377 | -9/Mines | Discovered new exit (range 8) 3398 | -9/Mines | Build established: Mutant 3405 | -9/Mines | Entered Materials 3405 | -8/Materials | Accompanied by 2 allies 3405 | -8/Materials | Evolved 4 slots: Utility x4 3727 | -8/Materials | Garrison activated, responded to threat 3799 | -8/Materials | Destroyed 7 combat bots 3877 | -8/Materials | Identified exit to Garrison 3877 | -8/Materials | Entered Garrison 3966 | -8/Garrison | Triggered checkpoint 4081 | -8/Garrison | Discovered new exit (range 12) 4091 | -8/Garrison | Build established: Scavenger-Mutant 4101 | -8/Garrison | Entered Factory 4101 | -7/Factory | Evolved 2 slots: Utility x2 4103 | -7/Factory | FarCom data flow suspended 4364 | -7/Factory | Fabricated Imp. Reaction Control System (x1) 4615 | -7/Factory | Garrison activated, responded to threat 4959 | -7/Factory | Identified exit to Lower Caves 5210 | -7/Factory | Lost 9 parts (1p2n5u1w) 5489 | -7/Factory | Entered Lower Caves 5489 | -7/Lower Caves | Spotted T5-JUP(f) 5489 | -7/Lower Caves | Spotted LR-TXX(f) 5490 | -7/Lower Caves | Encountered a Master Thief 5490 | -7/Lower Caves | Encountered a Master Thief 5494 | -7/Lower Caves | Chronowheel stolen by Master Thief 5498 | -7/Lower Caves | Imp. Reaction Control System stolen by Master Thief 5994 | -7/Lower Caves | Attracted the attention of an 0b10 checkpoint 6309 | -7/Lower Caves | Discovered new exit (range 5) 6320 | -7/Lower Caves | Entered another Lower Caves area 6358 | -7/Lower Caves | Discovered new exit (range 13) 6468 | -7/Lower Caves | Attracted the attention of an 0b10 outpost 6541 | -7/Lower Caves | Destroyed 11 combat bots 6544 | -7/Lower Caves | Lost 7 parts (1p2n4u) 7180 | -7/Lower Caves | Spotted B-75 Beast 7434 | -7/Lower Caves | Spotted MD-KY2(f) 7435 | -7/Lower Caves | Spotted FW-4M1(f) 7435 | -7/Lower Caves | Spotted DW-D64(f) 7436 | -7/Lower Caves | Encountered a Master Thief 7436 | -7/Lower Caves | Encountered a Master Thief 7436 | -7/Lower Caves | Encountered a Master Thief 7437 | -7/Lower Caves | Spotted V2-TVY(f) 7437 | -7/Lower Caves | Spotted DI-TCE(f) 7438 | -7/Lower Caves | Encountered a Master Thief 7438 | -7/Lower Caves | Focal Shield stolen by Master Thief 7439 | -7/Lower Caves | Encountered a Master Thief 7444 | -7/Lower Caves | Imp. Particle Charger stolen by Master Thief 7445 | -7/Lower Caves | Destroyed MD-KY2(f) 7449 | -7/Lower Caves | Datajack stolen by Master Thief 7466 | -7/Lower Caves | Allies destroyed DI-TCE(f) 7566 | -7/Lower Caves | Discovered new exit (range 6) 7614 | -7/Lower Caves | Entered Data Miner 7614 | -7/Data Miner | Accompanied by 2 allies 7615 | -7/Data Miner | Discovered new exit (range 6) 7676 | -7/Data Miner | Met Data Miner 7756 | -7/Data Miner | Learned location of Section 7 (-2) 7756 | -7/Data Miner | Acquired the access code to Warlord's prototype stash 7811 | -7/Data Miner | Received God Mode back door access code from Data Miner 7911 | -7/Data Miner | Entered Proximity Caves 7911 | -6/Proximity Caves | Accompanied by 2 allies 8212 | -6/Proximity Caves | Escorted by Enhanced Grunt 8335 | -6/Proximity Caves | Learned Factory emergency access door positions 8553 | -6/Proximity Caves | System corruption reached 10% 8614 | -6/Proximity Caves | Identified exit to Factory 8773 | -6/Proximity Caves | Entered Factory 8773 | -6/Factory | Evolved 2 slots: Power x1, Utility x1 8950 | -6/Factory | Lost 5 parts (1p2u2w) 8958 | -6/Factory | System corruption reached 10% 9048 | -6/Factory | Identified exit to Lower Caves 9048 | -6/Factory | Identified exit to Extension 9061 | -6/Factory | Found Prototype Launcher 9063 | -6/Factory | Found Prototype Launcher 9065 | -6/Factory | Found Prototype Launcher 9140 | -6/Factory | Entered Lower Caves 9146 | -6/Lower Caves | Identified Rocket Array (x3) 9182 | -6/Lower Caves | Learned Factory interactive machine intel 9206 | -6/Lower Caves | Encountered a Warlord checkpoint 9208 | -6/Lower Caves | Build established: Hauler-Mutant 9291 | -6/Lower Caves | Discovered new exit (range 15) 9298 | -6/Lower Caves | Entered another Lower Caves area 9305 | -6/Lower Caves | Encountered a Warlord checkpoint 9437 | -6/Lower Caves | Discovered new exit (range 13) 9452 | -6/Lower Caves | Entered Zion 9498 | -6/Zion | Given A8's code to call for help 9503 | -6/Zion | Discovered new exit (range 12) 9536 | -6/Zion | System corruption cleaned by Quarantine Array 9614 | -6/Zion | Gained Derelict followers 9643 | -6/Zion | Found Prototype Energy Gun 9665 | -6/Zion | Found Prototype Device 9765 | -6/Zion | Learned Factory emergency access door positions 9780 | -6/Zion | Learned Factory emergency access door positions 9837 | -6/Zion | Received a hallucinogenic algorithm 10063 | -6/Zion | Found Relay Coupler [Programmer] 10450 | -6/Zion | Discovered new exit (range 4) 10642 | -6/Zion | Enhanced Grunt warped into view, answering call for help 10647 | -6/Zion | Enhanced Grunt warped into view, answering call for help 10727 | -6/Zion | Saw the warning signs outside the Deep Caves entrance 10760 | -6/Zion | Entered Deep Caves 10760 | -6/Deep Caves | Accompanied by 6 allies 10782 | -6/Deep Caves | Found Surveybot 24 Scanner 10784 | -6/Deep Caves | Found Surveybot 24 Chip 10944 | -6/Deep Caves | Attacked by Z-Imprinter 10955 | -6/Deep Caves | Allies destroyed Z-Imprinter 11002 | -6/Deep Caves | Found Prototype Protection 11002 | -6/Deep Caves | Identified Zio. Weapon Casing 11019 | -6/Deep Caves | Found Zio. Weapon Casing 11060 | -6/Deep Caves | Z-Facility disabled 11398 | -6/Deep Caves | Spotted as-63771 11435 | -6/Deep Caves | Core integrity fell below 50% 11452 | -6/Deep Caves | Core integrity fell below 20% 11484 | -6/Deep Caves | Lost 7 parts (2n4u1w) 11545 | -6/Deep Caves | Lost 5 parts (1p1n1u2w) 11560 | -6/Deep Caves | Triggered Deep Caves wall 11560 | -6/Deep Caves | Destroyed by as-78228 with Assembled Rifle Last Messages --------------- 11449_ Exp. Reaction Control System destroyed. 11452_ Mak. Power Source broken. 11452_ Overheating: Short circuit. 11452_ System corrupted: Component data lost. 11452_ as-63771 Prototype Energy Cannon integration complete. 11453_ Zio. Glidesys II destroyed. 11456_ Zio. Light DM Reactor broken. 11456_ Overheating: Short circuit. 11467_ System corrupted: Component data lost. 11514_ Broken Mak. Power Source destroyed. 11514_ Dropped Lightpack 2.0. 11514_ Bore Cannon crushed and broken. 11514_ Mak. Transmission Jammer crushed and broken. 11514_ Zio. Composite Leg I crushed and broken. 11514_ Mak. Axe crushed and broken. 11514_ Lightpack 2.0 crushed and broken. 11516_ Dropped Broken Zio. Light DM Reactor. 11528_ System corrupted: Heat flow error (+126). 11550_ TRUQGOQDKI KB9OUCLJKTW/Z><|0VCKVZA1UA 11560_ The wall dematerializes. Map ----- +----------------------------------------------------+ | ??????????????????????????????????????? | | ??????????????????????????????????????? | | ??????????????????????????????????????? | | ??????????????????????????????????????? | | ??????????????????????????????????????? | | ?????????????????? ????????????????? | | ???????????????? ????????????????? | | ??????????????? ??###????####???? | | ????????????? ??# #???## ##??? | | ??????????? ### #???# ##?? | | ?????????? # ???# ### | | ???????? M * ##???# ## | | ?????? aa ##??# # | | ???? a ** / ??## | | ????aaaaa l |!#?##* | | ??? a * b =]/###!!! #### | | ????? aaa g s =]![==]# ##??# | | ?????? aa [*]=######???# | | ??????? a !==#????????# | | ????????# * * [l/=###??##### | | ?????????" * ! *=" #?## | | ?????????" ;#### | | ?????????" ] !* #### | | ?????????" = = ! ! !* ;## | | ????????"" * ![ ## | | ????????# @ ;## | | ????????" ! #### ## | | ????????" ! ##### ### | | ????????" #?? | | ????????""" = g #?? | | ????????" ! #?? | | ????????"" ########?? | | ????????" g #????????? | | ????????"" ##????????? | | ????????" # # #?????????? | | ????????" #### ## ## ##?????????? | | ????????""" ##???# ## ####??????????? | | ?????????? ?????#### #?????????????? | | ?????????#####?????????#??????????????? | | | | | | | | | | | | | | | | | | | | | | | +----------------------------------------------------+ Best States ------------- Heat Dissipation 76 Energy Generation 37 Energy Capacity 885 Matter Stores 300 Matter Capacity 300 Sight Range 16 Terrain Scan Density 10 Additional Mass Support 9 Armor Coverage 800 Resistance: KI 20 Core Shielding 30 Propulsion Shielding 66 Utility Shielding 33 Weapon Shielding 100 Weapon Cycling 15 Melee Speed Boost 20 Evasion (%) 68 Recoil Reduction 2 Particle Charging 25 Salvage Targeting 4 Item Schematics ----------------- Combat Drone Bay | -7/Data Miner | Free Lgt. Regenerative Plating | -7/Data Miner | Free Biomechanical Wings | -7/Data Miner | Free Thermal Defense Suite | -7/Data Miner | Free Com. Ion Cannon | -7/Data Miner | Free Field Propulsion Drive | -7/Data Miner | Free Adv. Salvage Targeting Computer | -7/Data Miner | Free Wave Gun | -7/Data Miner | Free Hpw. Shock Rifle | -7/Data Miner | Free Lrn. Proton Cannon | -7/Data Miner | Free Antimatter Reactor | -7/Data Miner | Free Robot Schematics ------------------ H-66 Slayer | -7/Data Miner | Free R-10 Processor | -7/Data Miner | Free M-22 Extractor | -7/Data Miner | Free G-50 Soldier | -7/Data Miner | Free Fabricated ------------ Imp. Reaction Control System | x1 | -7/Factory | Preloaded Alien Tech Used ----------------- None Achievements -------------- None Challenges ------------ None Game ------ Seed ParticleLegCleaver Manual? 0 Play Time 01:35:02 Cumulative 343.2 hours Start 2022.05.03 @ 17:27:03 End 2022.05.03 @ 20:16:22 Sessions 3 Manual Loads 0 Difficulty Rogue Special Mode None Game No. 111 Rogue 111 Adventurer 0 Explorer 0 Win Type - Total 7 Types 3/1/0/1/2/0/0/0/0 Lore% 66 Gallery% 78 Achievement% 69 Wizard Run 0 Options --------- ASCII 0 Keyboard 0 Movement Arrows Keybinds 0 Fullscreen 0 Font 28/SmallcapsGlow Map View 72x54 Tactical HUD 1 Map Filters NONE Filters NONE Steam 1 RUN: ceb16ae7-5137-4a9a-aaab-56bab1ff5dcf